Workbook

Sheet INICIO
B2: SISTEMA DE CONTROL DE CRÉDITO FISCAL IVA
B3: Actualización por UFV segun Ley 843 y DS 21530
B4: boliviaimpuestos.com
B6: DATOS DE LA EMPRESA
B8: NIT: | C8: 467672024
B9: Razon Social: | C9: TRANSPORTADORA Y DIST ABC SRL
B10: Gestion: | C10: 2025
C11: =_CONFIG!B3 -> activo
B12: RESUMEN DE SALDOS AL CIERRE
B14: Saldo CF Base: | C14: =REPORTE!F32 -> 23266.52 | D14: Bs.
B15: Actualizacion UFV: | C15: =REPORTE!F33 -> 4535.2 | D15: Bs.
B16: SALDO CONTABLE: | C16: =REPORTE!F34 -> 27801.72 | D16: Bs.
B17: Saldo segun SIAT: | C17: =REPORTE!F40 -> 26464.14 | D17: Bs.
B18: DIFERENCIA: | C18: =REPORTE!F43 -> 1337.58 | D18: Bs.
B21: INSTRUCCIONES DE USO
B23: 1. Complete NIT y Razon Social arriba
B24: 2. UFVs: valores ultimo dia habil por mes (BCB)
B25: 3. CREDITOS: capas historicas del SIAT
B26: 4. CALCULOS: ingrese CF y DF de cada mes (amarillo)
B27: 5. ASIENTOS: contables del MV y compensacion
B28: 6. REPORTE: resumen para Estados Financieros
B29: 7. ANEXO 2: formato para declaracion tributaria
B31: SIAT (PEPS) solo actualiza al compensar.
B32: Ley 843 exige actualizar TODO el saldo cada mes.
B33: Use SALDO CONTABLE para EEFF. SIAT es referencia.
B35: NOTA: Los créditos históricos están en la sección "SALDO CUENTA CORRIENTE SIAT" de la hoja CALCULOS

Sheet UFVs
A1: UFV ULTIMO DIA HABIL POR MES (BCB)
A3: 2022
A4: # | B4: Mes | C4: Dia | D4: UFV
A5: 1 | B5: Ene | C5: 31 | D5: 2.37562
A6: 2 | B6: Feb | C6: 28 | D6: 2.37712
A7: 3 | B7: Mar | C7: 31 | D7: 2.37846
A8: 4 | B8: Abr | C8: 29 | D8: 2.37991
A9: 5 | B9: May | C9: 31 | D9: 2.38172
A10: 6 | B10: Jun | C10: 30 | D10: 2.38412
A11: 7 | B11: Jul | C11: 29 | D11: 2.38711
A12: 8 | B12: Ago | C12: 31 | D12: 2.39116
A13: 9 | B13: Sep | C13: 30 | D13: 2.39446
A14: 10 | B14: Oct | C14: 31 | D14: 2.39798
A15: 11 | B15: Nov | C15: 30 | D15: 2.40298
A16: 12 | B16: Dic | C16: 30 | D16: 2.40878
A18: 2023
A19: # | B19: Mes | C19: Dia | D19: UFV
A20: 1 | B20: Ene | C20: 31 | D20: 2.41518
A21: 2 | B21: Feb | C21: 28 | D21: 2.42134
A22: 3 | B22: Mar | C22: 31 | D22: 2.42691
A23: 4 | B23: Abr | C23: 28 | D23: 2.43167
A24: 5 | B24: May | C24: 31 | D24: 2.43718
A25: 6 | B25: Jun | C25: 30 | D25: 2.44278
A26: 7 | B26: Jul | C26: 31 | D26: 2.44846
A27: 8 | B27: Ago | C27: 31 | D27: 2.45404
A28: 9 | B28: Sep | C28: 29 | D28: 2.45983
A29: 10 | B29: Oct | C29: 31 | D29: 2.46603
A30: 11 | B30: Nov | C30: 30 | D30: 2.47073
A31: 12 | B31: Dic | C31: 29 | D31: 2.47422
A33: 2024
A34: # | B34: Mes | C34: Dia | D34: UFV
A35: 1 | B35: Ene | C35: 31 | D35: 2.47848
A36: 2 | B36: Feb | C36: 29 | D36: 2.48245
A37: 3 | B37: Mar | C37: 29 | D37: 2.48688
A38: 4 | B38: Abr | C38: 30 | D38: 2.49312
A39: 5 | B39: May | C39: 31 | D39: 2.49995
A40: 6 | B40: Jun | C40: 28 | D40: 2.50667
A41: 7 | B41: Jul | C41: 31 | D41: 2.51478
A42: 8 | B42: Ago | C42: 30 | D42: 2.52258
A43: 9 | B43: Sep | C43: 30 | D43: 2.53274
A44: 10 | B44: Oct | C44: 31 | D44: 2.5448
A45: 11 | B45: Nov | C45: 29 | D45: 2.55926
A46: 12 | B46: Dic | C46: 31 | D46: 2.57833
A48: 2025
A49: # | B49: Mes | C49: Dia | D49: UFV
A50: 1 | B50: Ene | C50: 31 | D50: 2.59849
A51: 2 | B51: Feb | C51: 28 | D51: 2.62178
A52: 3 | B52: Mar | C52: 31 | D52: 2.64826
A53: 4 | B53: Abr | C53: 30 | D53: 2.67764
A54: 5 | B54: May | C54: 30 | D54: 2.70774
A55: 6 | B55: Jun | C55: 30 | D55: 2.74499
A56: 7 | B56: Jul | C56: 31 | D56: 2.79114
A57: 8 | B57: Ago | C57: 29 | D57: 2.83932
A58: 9 | B58: Sep | C58: 30 | D58: 2.89488
A59: 10 | B59: Oct | C59: 31 | D59: 2.94641
A60: 11 | B60: Nov | C60: 28 | D60: 2.99351
A61: 12 | B61: Dic | C61: 31 | D61: 3.04561

Sheet CREDITOS (hidden)
A1: REGISTRO DE CREDITOS FISCALES HISTORICOS (SIAT)
A3: # | B3: Per | C3: Ano | D3: Form | E3: Monto Orig. | F3: Saldo Actual | G3: UFV Origen | H3: Estado | I3: PEPS? | J3: Obs.
A4: 1 | B4: 11 | C4: 2022 | D4: 200 | E4: 1022 | F4: 0 | G4: 2.40298 | H4: Agotado | I4: No | J4: Usado 2023
A5: 2 | B5: 12 | C5: 2022 | D5: 200 | E5: 532 | F5: 0 | G5: 2.40878 | H5: Agotado | I5: No | J5: Usado 2023
A6: 3 | B6: 1 | C6: 2023 | D6: 200 | E6: 46 | F6: 0 | G6: 2.41518 | H6: Agotado | I6: No | J6: Usado 2023
A7: 4 | B7: 11 | C7: 2023 | D7: 200 | E7: 71911 | F7: 0 | G7: 2.47073 | H7: Agotado | I7: No | J7: Usado 2024
A8: 5 | B8: 12 | C8: 2023 | D8: 200 | E8: 203482 | F8: 0 | G8: 2.47422 | H8: Agotado | I8: Si(1.00) | J8: Remanente 1 Bs
A9: 6 | B9: 7 | C9: 2025 | D9: 200 | E9: 55037.98 | F9: 0 | G9: 2.79114 | H9: Agotado | I9: Auto | J9: CF Jul
A10: 7 | B10: 8 | C10: 2025 | D10: 200 | E10: 64331.97 | F10: 0 | G10: 2.83932 | H10: Agotado | I10: Auto | J10: CF Ago
A11: 8 | B11: 9 | C11: 2025 | D11: 200 | E11: 26954.17 | F11: 14501.61 | G11: 2.89488 | H11: Parcial | I11: Auto | J11: CF Sep
A12: 9 | B12: 11 | C12: 2025 | D12: 200 | E12: 37780.53 | F12: 6251.37 | G12: 2.99351 | H12: Con saldo | I12: Auto | J12: CF Nov
A13: 10 | B13: 12 | C13: 2025 | D13: 200 | E13: 19582.16 | F13: 5711.16 | G13: 3.04561 | H13: Con saldo | I13: Auto | J13: CF Dic
E14: Total Saldo: | F14: =SUM(F4:F13) -> 26464.14

Sheet CALCULOS
A1: CONTROL DUAL DE CREDITO FISCAL IVA - CONTABLE vs SIAT
A3: CALCULO CONTABLE (Ley 843) | N3: SIMULACION SIAT (PEPS)
A4: # | B4: Mes | C4: Ano | D4: UFV Ini | E4: UFV Fin | F4: Saldo Ini | G4: CF Nuevo | H4: Deb.Fiscal | I4: CF a Favor | J4: Saldo Base | K4: MV Mes | L4: Saldo Act. | N4: Comp. Mismo | O4: Comp. Capas | P4: MV | Q4: Saldo SIAT
A5: 1 | B5: Ene | C5: 2025 | D5: 2.57833 | E5: =INDEX(UFVs!$D:$D, 48 + 1 + 1) -> 2.59849 | F5: 0 | G5: 0 | H5: 0 | I5: =IF(G5>H5,G5-H5,0) -> 0 | J5: =MAX(0,F5+G5-H5) -> 0 | K5: =IF(OR(J5=0,D5=0,E5=0),0,ROUND(J5*((E5/D5)-1),2)) -> 0 | L5: =J5+K5 -> 0 | N5: 0 | O5: 0 | P5: 0 | Q5: 1
A6: 2 | B6: Feb | C6: 2025 | D6: =E5 -> 2.59849 | E6: =INDEX(UFVs!$D:$D, 48 + 2 + 1) -> 2.62178 | F6: =L5 -> 0 | G6: 0 | H6: 0 | I6: 0 | J6: 0 | K6: 0 | L6: 0 | N6: 0 | O6: 0 | P6: 0 | Q6: 1
A7: 3 | B7: Mar | C7: 2025 | D7: 2.62178 | E7: =INDEX(UFVs!$D:$D, 48 + 3 + 1) -> 2.64826 | F7: 0 | G7: 21396 | H7: 48247 | I7: 0 | J7: 0 | K7: 0 | L7: 0 | N7: 21396 | O7: 0 | P7: 0 | Q7: 1
A8: 4 | B8: Abr | C8: 2025 | D8: 2.64826 | E8: =INDEX(UFVs!$D:$D, 48 + 4 + 1) -> 2.67764 | F8: 0 | G8: 10171 | H8: 30743 | I8: 0 | J8: 0 | K8: 0 | L8: 0 | N8: 10171 | O8: 0 | P8: 0 | Q8: 1
A9: 5 | B9: May | C9: 2025 | D9: 2.67764 | E9: =INDEX(UFVs!$D:$D, 48 + 5 + 1) -> 2.70774 | F9: 0 | G9: 7985.57 | H9: 72739.23 | I9: 0 | J9: 0 | K9: 0 | L9: 0 | N9: 7985.57 | O9: 0 | P9: 0 | Q9: 1
A10: 6 | B10: Jun | C10: 2025 | D10: 2.70774 | E10: =INDEX(UFVs!$D:$D, 48 + 6 + 1) -> 2.74499 | F10: 0 | G10: 42540.52 | H10: 59258.36 | I10: 0 | J10: 0 | K10: 0 | L10: 0 | N10: 42540.52 | O10: 0 | P10: 0 | Q10: 1
A11: 7 | B11: Jul | C11: 2025 | D11: 2.74499 | E11: =INDEX(UFVs!$D:$D, 48 + 7 + 1) -> 2.79114 | F11: 0 | G11: 55037.98 | H11: 45180.43 | I11: 9857.55 | J11: 9857.55 | K11: 165.73 | L11: 10023.28 | N11: 45180.43 | O11: 0 | P11: 0 | Q11: 9858.55
A12: 8 | B12: Ago | C12: 2025 | D12: 2.79114 | E12: =INDEX(UFVs!$D:$D, 48 + 8 + 1) -> 2.83932 | F12: 10023.28 | G12: 64331.97 | H12: 0 | I12: 64331.97 | J12: 74355.25 | K12: 1283.5 | L12: 75638.75 | N12: 0 | O12: 0 | P12: 0 | Q12: 74190.52
A13: 9 | B13: Sep | C13: 2025 | D13: 2.83932 | E13: =INDEX(UFVs!$D:$D, 48 + 9 + 1) -> 2.89488 | F13: 75638.75 | G13: 26954.17 | H13: 0 | I13: 26954.17 | J13: 102592.92 | K13: 2007.54 | L13: 104600.46 | N13: 0 | O13: 0 | P13: 0 | Q13: 101144.69
A14: 10 | B14: Oct | C14: 2025 | D14: 2.89488 | E14: =INDEX(UFVs!$D:$D, 48 + 10 + 1) -> 2.94641 | F14: 104600.46 | G14: 11304.19 | H14: 101143.89 | I14: 0 | J14: 14760.76 | K14: 262.75 | L14: 15023.51 | N14: 11304.19 | O14: 86643.08 | P14: 3196.61 | Q14: 14501.61
A15: 11 | B15: Nov | C15: 2025 | D15: 2.94641 | E15: =INDEX(UFVs!$D:$D, 48 + 11 + 1) -> 2.99351 | F15: 15023.51 | G15: 37780.53 | H15: 31529.16 | I15: 6251.37 | J15: 21274.88 | K15: 340.09 | L15: 21614.97 | N15: 31529.16 | O15: 0 | P15: 0 | Q15: 20752.98
A16: 12 | B16: Dic | C16: 2025 | D16: 2.99351 | E16: =INDEX(UFVs!$D:$D, 48 + 12 + 1) -> 3.04561 | F16: 21614.97 | G16: 19582.16 | H16: 13871 | I16: 5711.16 | J16: 27326.13 | K16: 475.59 | L16: 27801.72 | N16: 13871 | O16: 0 | P16: 0 | Q16: 26464.14
F17: TOTALES: | G17: =SUM(G5:G16) -> 297084.09 | H17: =SUM(H5:H16) -> 402712.07 | K17: =SUM(K5:K16) -> 4535.2 | L17: =L16 -> 27801.72 | Q17: =Q16 -> 26464.14
I18: Saldo Base organico: | J18: =L16-K17 -> 23266.52
A19: SALDO CUENTA CORRIENTE SIAT
A20: Nro | B20: Per | C20: Año | D20: Monto Orig | E20: Saldo | F20: UFV Origen | G20: UFV Consulta | H20: MV
A21: 1 | B21: 12 | C21: 2025 | D21: 19582.16 | E21: 5711.16 | F21: 3.04561 | G21: 3.09193 | H21: =ROUND((G21/F21-1)*E21,2) -> 86.86
A22: 2 | B22: 11 | C22: 2025 | D22: 37780.53 | E22: 6251.37 | F22: 2.99351 | G22: 3.09193 | H22: =ROUND((G22/F22-1)*E22,2) -> 205.53 | J22: EJEMPLO (BORRAR)
A23: 3 | B23: 9 | C23: 2025 | D23: 26954.17 | E23: 14501.61 | F23: 2.89488 | G23: 3.09193 | H23: =ROUND((G23/F23-1)*E23,2) -> 987.1
A24: 4 | B24: 8 | C24: 2025 | D24: 64331.97 | E24: 0 | F24: 2.83932 | G24: 3.09193 | H24: 0
A25: 5 | B25: 7 | C25: 2025 | D25: 55037.98 | E25: 0 | F25: 2.79114 | G25: 3.09193 | H25: 0
A26: 6 | B26: 3 | C26: 2025 | D26: 21396 | E26: 0 | F26: 2.64826 | G26: 3.09193 | H26: 0
A27: 7 | B27: 12 | C27: 2023 | D27: 203482 | E27: 0 | F27: 2.47422 | G27: 3.09193 | H27: 0
A28: 8 | B28: 11 | C28: 2023 | D28: 71911 | E28: 0 | F28: 2.47073 | G28: 3.09193 | H28: 0
A29: 9 | B29: 1 | C29: 2023 | D29: 46 | E29: 0 | F29: 2.41518 | G29: 3.09193 | H29: 0
A30: 10 | B30: 12 | C30: 2022 | D30: 532 | E30: 0 | F30: 2.40878 | G30: 3.09193 | H30: 0
A31: 11 | B31: 11 | C31: 2022 | D31: 1022 | E31: 0 | F31: 2.40298 | G31: 3.09193 | H31: 0
D32: TOTALES: | E32: =SUM(E21:E31) -> 26464.14 | H32: =SUM(H21:H31) -> 1279.49
A34: SALDO CUENTA CORRIENTE
A35: Saldo Total: | D35: =E32 -> 26464.14
A36: Saldo MV: | D36: =H32 -> 1279.49
A37: UFV Consulta: | D37: 3.09193

Sheet ASIENTOS
A1: ASIENTOS CONTABLES SUGERIDOS
A2: Control de Crédito Fiscal IVA - Bolivia Impuestos
A4: PLAN DE CUENTAS (PUC Bolivia)
B5: Código | C5: Nombre | D5: Descripción
B6: 1.1.6.001.001 | C6: IVA CREDITO FISCAL | D6: Saldos históricos de CF
B7: 1.1.6.001.002 | C7: ACTUALIZACION ACUMULADA CF | D7: Componente indexación UFV
B8: 2.1.4.001.001 | C8: IVA DEBITO FISCAL | D8: Débito fiscal a pagar
B9: 4.4.1.002.001 | C9: MANT. DE VALOR (Ingreso) | D9: Actualización devengada
B10: 5.2.3.001.001 | C10: MANT. DE VALOR (Gasto) | D10: Baja de CF actualizado
A13: ═══ ENERO ═══
A14: A) Actualización MV
B15: Fecha | C15: Concepto | D15: Debe (Bs) | E15: Haber (Bs)
B16: =IF(CALCULOS!K5<>0, EOMONTH(DATE(INICIO!$C$10, 1, 1), 0), "") ->  | C16: 1.1.6.001.002 ACTUALIZACION ACUM. CF | D16: =IF(CALCULOS!K5<>0, CALCULOS!K5, "") -> 
C17: 4.4.1.002.001 MANT. DE VALOR | E17: =IF(D16<>"", D16, "") -> 
A19: B) Compensación IVA
B20: Fecha | C20: Concepto | D20: Debe (Bs) | E20: Haber (Bs)
B21: =IF(CALCULOS!H5>0, EOMONTH(DATE(INICIO!$C$10, 1, 1), 0), "") ->  | C21: 2.1.4.001.001 IVA DEBITO FISCAL | D21: =IF(CALCULOS!H5>0, CALCULOS!H5, "") -> 
C22: 1.1.6.001.001 IVA CREDITO FISCAL | E22: =IF(D21<>"", D21, "") -> 
A25: ═══ FEBRERO ═══
A26: A) Actualización MV
B27: Fecha | C27: Concepto | D27: Debe (Bs) | E27: Haber (Bs)
B28: =IF(CALCULOS!K6<>0, EOMONTH(DATE(INICIO!$C$10, 2, 1), 0), "") ->  | C28: 1.1.6.001.002 ACTUALIZACION ACUM. CF | D28: =IF(CALCULOS!K6<>0, CALCULOS!K6, "") -> 
C29: 4.4.1.002.001 MANT. DE VALOR | E29: =IF(D28<>"", D28, "") -> 
A31: B) Compensación IVA
B32: Fecha | C32: Concepto | D32: Debe (Bs) | E32: Haber (Bs)
B33: =IF(CALCULOS!H6>0, EOMONTH(DATE(INICIO!$C$10, 2, 1), 0), "") ->  | C33: 2.1.4.001.001 IVA DEBITO FISCAL | D33: =IF(CALCULOS!H6>0, CALCULOS!H6, "") -> 
C34: 1.1.6.001.001 IVA CREDITO FISCAL | E34: =IF(D33<>"", D33, "") -> 
A37: ═══ MARZO ═══
A38: A) Actualización MV
B39: Fecha | C39: Concepto | D39: Debe (Bs) | E39: Haber (Bs)
B40: =IF(CALCULOS!K7<>0, EOMONTH(DATE(INICIO!$C$10, 3, 1), 0), "") ->  | C40: 1.1.6.001.002 ACTUALIZACION ACUM. CF | D40: =IF(CALCULOS!K7<>0, CALCULOS!K7, "") -> 
C41: 4.4.1.002.001 MANT. DE VALOR | E41: =IF(D40<>"", D40, "") -> 
A43: B) Compensación IVA
B44: Fecha | C44: Concepto | D44: Debe (Bs) | E44: Haber (Bs)
B45: =IF(CALCULOS!H7>0, EOMONTH(DATE(INICIO!$C$10, 3, 1), 0), "") -> 2025-03-31 | C45: 2.1.4.001.001 IVA DEBITO FISCAL | D45: =IF(CALCULOS!H7>0, CALCULOS!H7, "") -> 48247
C46: 1.1.6.001.001 IVA CREDITO FISCAL | E46: =IF(D45<>"", D45, "") -> 48247
A49: ═══ ABRIL ═══
A50: A) Actualización MV
B51: Fecha | C51: Concepto | D51: Debe (Bs) | E51: Haber (Bs)
B52: =IF(CALCULOS!K8<>0, EOMONTH(DATE(INICIO!$C$10, 4, 1), 0), "") ->  | C52: 1.1.6.001.002 ACTUALIZACION ACUM. CF | D52: =IF(CALCULOS!K8<>0, CALCULOS!K8, "") -> 
C53: 4.4.1.002.001 MANT. DE VALOR | E53: =IF(D52<>"", D52, "") -> 
A55: B) Compensación IVA
B56: Fecha | C56: Concepto | D56: Debe (Bs) | E56: Haber (Bs)
B57: =IF(CALCULOS!H8>0, EOMONTH(DATE(INICIO!$C$10, 4, 1), 0), "") -> 2025-04-30 | C57: 2.1.4.001.001 IVA DEBITO FISCAL | D57: =IF(CALCULOS!H8>0, CALCULOS!H8, "") -> 30743
C58: 1.1.6.001.001 IVA CREDITO FISCAL | E58: =IF(D57<>"", D57, "") -> 30743
A61: ═══ MAYO ═══
A62: A) Actualización MV
B63: Fecha | C63: Concepto | D63: Debe (Bs) | E63: Haber (Bs)
B64: =IF(CALCULOS!K9<>0, EOMONTH(DATE(INICIO!$C$10, 5, 1), 0), "") ->  | C64: 1.1.6.001.002 ACTUALIZACION ACUM. CF | D64: =IF(CALCULOS!K9<>0, CALCULOS!K9, "") -> 
C65: 4.4.1.002.001 MANT. DE VALOR | E65: =IF(D64<>"", D64, "") -> 
A67: B) Compensación IVA
B68: Fecha | C68: Concepto | D68: Debe (Bs) | E68: Haber (Bs)
B69: =IF(CALCULOS!H9>0, EOMONTH(DATE(INICIO!$C$10, 5, 1), 0), "") -> 2025-05-31 | C69: 2.1.4.001.001 IVA DEBITO FISCAL | D69: =IF(CALCULOS!H9>0, CALCULOS!H9, "") -> 72739.23
C70: 1.1.6.001.001 IVA CREDITO FISCAL | E70: =IF(D69<>"", D69, "") -> 72739.23
A73: ═══ JUNIO ═══
A74: A) Actualización MV
B75: Fecha | C75: Concepto | D75: Debe (Bs) | E75: Haber (Bs)
B76: =IF(CALCULOS!K10<>0, EOMONTH(DATE(INICIO!$C$10, 6, 1), 0), "") ->  | C76: 1.1.6.001.002 ACTUALIZACION ACUM. CF | D76: =IF(CALCULOS!K10<>0, CALCULOS!K10, "") -> 
C77: 4.4.1.002.001 MANT. DE VALOR | E77: =IF(D76<>"", D76, "") -> 
A79: B) Compensación IVA
B80: Fecha | C80: Concepto | D80: Debe (Bs) | E80: Haber (Bs)
B81: =IF(CALCULOS!H10>0, EOMONTH(DATE(INICIO!$C$10, 6, 1), 0), "") -> 2025-06-30 | C81: 2.1.4.001.001 IVA DEBITO FISCAL | D81: =IF(CALCULOS!H10>0, CALCULOS!H10, "") -> 59258.36
C82: 1.1.6.001.001 IVA CREDITO FISCAL | E82: =IF(D81<>"", D81, "") -> 59258.36
A85: ═══ JULIO ═══
A86: A) Actualización MV
B87: Fecha | C87: Concepto | D87: Debe (Bs) | E87: Haber (Bs)
B88: =IF(CALCULOS!K11<>0, EOMONTH(DATE(INICIO!$C$10, 7, 1), 0), "") -> 2025-07-31 | C88: 1.1.6.001.002 ACTUALIZACION ACUM. CF | D88: =IF(CALCULOS!K11<>0, CALCULOS!K11, "") -> 165.73
C89: 4.4.1.002.001 MANT. DE VALOR | E89: =IF(D88<>"", D88, "") -> 165.73
A91: B) Compensación IVA
B92: Fecha | C92: Concepto | D92: Debe (Bs) | E92: Haber (Bs)
B93: =IF(CALCULOS!H11>0, EOMONTH(DATE(INICIO!$C$10, 7, 1), 0), "") -> 2025-07-31 | C93: 2.1.4.001.001 IVA DEBITO FISCAL | D93: =IF(CALCULOS!H11>0, CALCULOS!H11, "") -> 45180.43
C94: 1.1.6.001.001 IVA CREDITO FISCAL | E94: =IF(D93<>"", D93, "") -> 45180.43
A97: ═══ AGOSTO ═══
A98: A) Actualización MV
B99: Fecha | C99: Concepto | D99: Debe (Bs) | E99: Haber (Bs)
B100: =IF(CALCULOS!K12<>0, EOMONTH(DATE(INICIO!$C$10, 8, 1), 0), "") -> 2025-08-31 | C100: 1.1.6.001.002 ACTUALIZACION ACUM. CF | D100: =IF(CALCULOS!K12<>0, CALCULOS!K12, "") -> 1283.5
C101: 4.4.1.002.001 MANT. DE VALOR | E101: =IF(D100<>"", D100, "") -> 1283.5
A103: B) Compensación IVA
B104: Fecha | C104: Concepto | D104: Debe (Bs) | E104: Haber (Bs)
B105: =IF(CALCULOS!H12>0, EOMONTH(DATE(INICIO!$C$10, 8, 1), 0), "") ->  | C105: 2.1.4.001.001 IVA DEBITO FISCAL | D105: =IF(CALCULOS!H12>0, CALCULOS!H12, "") -> 
C106: 1.1.6.001.001 IVA CREDITO FISCAL | E106: =IF(D105<>"", D105, "") -> 
A109: ═══ SEPTIEMBRE ═══
A110: A) Actualización MV
B111: Fecha | C111: Concepto | D111: Debe (Bs) | E111: Haber (Bs)
B112: =IF(CALCULOS!K13<>0, EOMONTH(DATE(INICIO!$C$10, 9, 1), 0), "") -> 2025-09-30 | C112: 1.1.6.001.002 ACTUALIZACION ACUM. CF | D112: =IF(CALCULOS!K13<>0, CALCULOS!K13, "") -> 2007.54
C113: 4.4.1.002.001 MANT. DE VALOR | E113: =IF(D112<>"", D112, "") -> 2007.54
A115: B) Compensación IVA
B116: Fecha | C116: Concepto | D116: Debe (Bs) | E116: Haber (Bs)
B117: =IF(CALCULOS!H13>0, EOMONTH(DATE(INICIO!$C$10, 9, 1), 0), "") ->  | C117: 2.1.4.001.001 IVA DEBITO FISCAL | D117: =IF(CALCULOS!H13>0, CALCULOS!H13, "") -> 
C118: 1.1.6.001.001 IVA CREDITO FISCAL | E118: =IF(D117<>"", D117, "") -> 
A121: ═══ OCTUBRE ═══
A122: A) Actualización MV
B123: Fecha | C123: Concepto | D123: Debe (Bs) | E123: Haber (Bs)
B124: =IF(CALCULOS!K14<>0, EOMONTH(DATE(INICIO!$C$10, 10, 1), 0), "") -> 2025-10-31 | C124: 1.1.6.001.002 ACTUALIZACION ACUM. CF | D124: =IF(CALCULOS!K14<>0, CALCULOS!K14, "") -> 262.75
C125: 4.4.1.002.001 MANT. DE VALOR | E125: =IF(D124<>"", D124, "") -> 262.75
A127: B) Compensación IVA
B128: Fecha | C128: Concepto | D128: Debe (Bs) | E128: Haber (Bs)
B129: =IF(CALCULOS!H14>0, EOMONTH(DATE(INICIO!$C$10, 10, 1), 0), "") -> 2025-10-31 | C129: 2.1.4.001.001 IVA DEBITO FISCAL | D129: =IF(CALCULOS!H14>0, CALCULOS!H14, "") -> 101143.89
C130: 1.1.6.001.001 IVA CREDITO FISCAL | E130: =IF(D129<>"", D129, "") -> 101143.89
A133: ═══ NOVIEMBRE ═══
A134: A) Actualización MV
B135: Fecha | C135: Concepto | D135: Debe (Bs) | E135: Haber (Bs)
B136: =IF(CALCULOS!K15<>0, EOMONTH(DATE(INICIO!$C$10, 11, 1), 0), "") -> 2025-11-30 | C136: 1.1.6.001.002 ACTUALIZACION ACUM. CF | D136: =IF(CALCULOS!K15<>0, CALCULOS!K15, "") -> 340.09
C137: 4.4.1.002.001 MANT. DE VALOR | E137: =IF(D136<>"", D136, "") -> 340.09
A139: B) Compensación IVA
B140: Fecha | C140: Concepto | D140: Debe (Bs) | E140: Haber (Bs)
B141: =IF(CALCULOS!H15>0, EOMONTH(DATE(INICIO!$C$10, 11, 1), 0), "") -> 2025-11-30 | C141: 2.1.4.001.001 IVA DEBITO FISCAL | D141: =IF(CALCULOS!H15>0, CALCULOS!H15, "") -> 31529.16
C142: 1.1.6.001.001 IVA CREDITO FISCAL | E142: =IF(D141<>"", D141, "") -> 31529.16
A145: ═══ DICIEMBRE ═══
A146: A) Actualización MV
B147: Fecha | C147: Concepto | D147: Debe (Bs) | E147: Haber (Bs)
B148: =IF(CALCULOS!K16<>0, EOMONTH(DATE(INICIO!$C$10, 12, 1), 0), "") -> 2025-12-31 | C148: 1.1.6.001.002 ACTUALIZACION ACUM. CF | D148: =IF(CALCULOS!K16<>0, CALCULOS!K16, "") -> 475.59
C149: 4.4.1.002.001 MANT. DE VALOR | E149: =IF(D148<>"", D148, "") -> 475.59
A151: B) Compensación IVA
B152: Fecha | C152: Concepto | D152: Debe (Bs) | E152: Haber (Bs)
B153: =IF(CALCULOS!H16>0, EOMONTH(DATE(INICIO!$C$10, 12, 1), 0), "") -> 2025-12-31 | C153: 2.1.4.001.001 IVA DEBITO FISCAL | D153: =IF(CALCULOS!H16>0, CALCULOS!H16, "") -> 13871
C154: 1.1.6.001.001 IVA CREDITO FISCAL | E154: =IF(D153<>"", D153, "") -> 13871
A158: NOTAS:
A159: 1. Los asientos de actualización (A) se generan solo si hay Mantenimiento de Valor en el mes
A160: 2. Los asientos de compensación (B) se generan solo si hay Débito Fiscal en el mes
A161: 3. Si un mes no tiene datos, las filas quedan vacías pero conservan su estructura
A163: Generado con Sistema de Control CF IVA - boliviaimpuestos.com

Sheet REPORTE
A1: HOJA DE TRABAJO - SALDO TOTAL CREDITO FISCAL IVA
A2: (Expresado en Bolivianos)
A4: I. ESTRUCTURA DE CUENTAS
B5: Codigo | C5: Descripcion | D5: Debe | E5: Haber | F5: Saldo
B6: 1.1.6.001 | C6: IVA CREDITO FISCAL (Cuenta Principal)
B7: 1.1.6.001.001 | C7: IVA Credito Fiscal (Historicos) | F7: =F9-F8 -> 23266.52
B8: 1.1.6.001.002 | C8: Actualizacion Acumulada CF (UFV) | F8: =CALCULOS!K17 -> 4535.2
C9: SALDO TOTAL CONTABLE | F9: =CALCULOS!L16 -> 27801.72
A11: II. RESUMEN ACTUALIZACION MENSUAL
B12: Mes | C12: Saldo Base | D12: UFV Inicio | E12: UFV Fin | F12: MV del Mes
B13: Ene | C13: =CALCULOS!J5 -> 0 | D13: =CALCULOS!D5 -> 2.57833 | E13: =CALCULOS!E5 -> 2.59849 | F13: =CALCULOS!K5 -> 0
B14: Feb | C14: =CALCULOS!J6 -> 0 | D14: =CALCULOS!D6 -> 2.59849 | E14: =CALCULOS!E6 -> 2.62178 | F14: =CALCULOS!K6 -> 0
B15: Mar | C15: =CALCULOS!J7 -> 0 | D15: =CALCULOS!D7 -> 2.62178 | E15: =CALCULOS!E7 -> 2.64826 | F15: =CALCULOS!K7 -> 0
B16: Abr | C16: =CALCULOS!J8 -> 0 | D16: =CALCULOS!D8 -> 2.64826 | E16: =CALCULOS!E8 -> 2.67764 | F16: =CALCULOS!K8 -> 0
B17: May | C17: =CALCULOS!J9 -> 0 | D17: =CALCULOS!D9 -> 2.67764 | E17: =CALCULOS!E9 -> 2.70774 | F17: =CALCULOS!K9 -> 0
B18: Jun | C18: =CALCULOS!J10 -> 0 | D18: =CALCULOS!D10 -> 2.70774 | E18: =CALCULOS!E10 -> 2.74499 | F18: =CALCULOS!K10 -> 0
B19: Jul | C19: =CALCULOS!J11 -> 9857.55 | D19: =CALCULOS!D11 -> 2.74499 | E19: =CALCULOS!E11 -> 2.79114 | F19: =CALCULOS!K11 -> 165.73
B20: Ago | C20: =CALCULOS!J12 -> 74355.25 | D20: =CALCULOS!D12 -> 2.79114 | E20: =CALCULOS!E12 -> 2.83932 | F20: =CALCULOS!K12 -> 1283.5
B21: Sep | C21: =CALCULOS!J13 -> 102592.92 | D21: =CALCULOS!D13 -> 2.83932 | E21: =CALCULOS!E13 -> 2.89488 | F21: =CALCULOS!K13 -> 2007.54
B22: Oct | C22: =CALCULOS!J14 -> 14760.76 | D22: =CALCULOS!D14 -> 2.89488 | E22: =CALCULOS!E14 -> 2.94641 | F22: =CALCULOS!K14 -> 262.75
B23: Nov | C23: =CALCULOS!J15 -> 21274.88 | D23: =CALCULOS!D15 -> 2.94641 | E23: =CALCULOS!E15 -> 2.99351 | F23: =CALCULOS!K15 -> 340.09
B24: Dic | C24: =CALCULOS!J16 -> 27326.13 | D24: =CALCULOS!D16 -> 2.99351 | E24: =CALCULOS!E16 -> 3.04561 | F24: =CALCULOS!K16 -> 475.59
E25: TOTAL: | F25: =SUM(F13:F24) -> 4535.2
A27: III. CONCILIACION DEL SALDO FINAL
B29: Saldo inicial de Credito Fiscal | F29: 0
B30: (+) Creditos fiscales generados | F30: =CALCULOS!G17 -> 297084.09
B31: (-) Debitos compensados contra CF | F31: =F30-F32 -> 273817.57
B32: (=) Saldo segun registros historicos | E32: (Cta 001) | F32: =CALCULOS!L16-CALCULOS!K17 -> 23266.52
B33: (+) Actualizacion acumulada UFV | E33: (Cta 002) | F33: =CALCULOS!K17 -> 4535.2
B34: (=) SALDO TOTAL CONTABLE (para EEFF) | F34: =F32+F33 -> 27801.72
A37: IV. REFERENCIA: SALDO SEGUN SIAT
A38: SIAT usa PEPS, solo actualiza al compensar. Diferencia = MV devengado no reconocido.
B40: Saldo Cuenta Corriente SIAT: | F40: 26464.14
B41: Saldo Mant. Valor SIAT: | F41: 1279.49
B43: DIFERENCIA (MV no reconocido): | F43: =F34-F40 -> 1337.58

Sheet ANEXO 2
O1: ANEXO 2
A3: INFORMACION SOBRE LA DETERMINACION DEL SALDO DE CREDITO FISCAL IVA
A4: (EXPRESADO EN BOLIVIANOS)
A6: Meses | B6: Saldo CF inicio A | C6: Mant. Valor B | D6: Increm. CF C | E6: Notas Cred. D | F6: CEDEIM E | G6: Restit. CF F | H6: Revers. G | I6: Deb.Fisc. compens. H | J6: Saldo cierre I | K6: CF per. ant. J | L6: CF fuera plazo K | M6: Saldo ajust. L | N6: CF decl. F200 M | O6: Difer. N
A7: Ene | B7: 0 | C7: =CALCULOS!K5 -> 0 | D7: =CALCULOS!G5 -> 0 | E7: 0 | F7: 0 | G7: 0 | H7: 0 | I7: =MIN(B7+C7+D7+E7-F7+G7-H7,CALCULOS!H5) -> 0 | J7: =MAX(0,B7+C7+D7+E7-F7+G7-H7-I7) -> 0 | K7: 0 | L7: 0 | M7: =D7+E7-K7+L7 -> 0 | N7: =CALCULOS!G5 -> 0 | O7: =M7-N7 -> 0
A8: Feb | B8: =J7 -> 0 | C8: =CALCULOS!K6 -> 0 | D8: =CALCULOS!G6 -> 0 | E8: 0 | F8: 0 | G8: 0 | H8: 0 | I8: =MIN(B8+C8+D8+E8-F8+G8-H8,CALCULOS!H6) -> 0 | J8: 0 | K8: 0 | L8: 0 | M8: 0 | N8: =CALCULOS!G6 -> 0 | O8: 0
A9: Mar | B9: 0 | C9: =CALCULOS!K7 -> 0 | D9: =CALCULOS!G7 -> 21396 | E9: 0 | F9: 0 | G9: 0 | H9: 0 | I9: =MIN(B9+C9+D9+E9-F9+G9-H9,CALCULOS!H7) -> 21396 | J9: 0 | K9: 0 | L9: 0 | M9: 21396 | N9: =CALCULOS!G7 -> 21396 | O9: 0
A10: Abr | B10: 0 | C10: =CALCULOS!K8 -> 0 | D10: =CALCULOS!G8 -> 10171 | E10: 0 | F10: 0 | G10: 0 | H10: 0 | I10: =MIN(B10+C10+D10+E10-F10+G10-H10,CALCULOS!H8) -> 10171 | J10: 0 | K10: 0 | L10: 0 | M10: 10171 | N10: =CALCULOS!G8 -> 10171 | O10: 0
A11: May | B11: 0 | C11: =CALCULOS!K9 -> 0 | D11: =CALCULOS!G9 -> 7985.57 | E11: 0 | F11: 0 | G11: 0 | H11: 0 | I11: =MIN(B11+C11+D11+E11-F11+G11-H11,CALCULOS!H9) -> 7985.57 | J11: 0 | K11: 0 | L11: 0 | M11: 7985.57 | N11: =CALCULOS!G9 -> 7985.57 | O11: 0
A12: Jun | B12: 0 | C12: =CALCULOS!K10 -> 0 | D12: =CALCULOS!G10 -> 42540.52 | E12: 0 | F12: 0 | G12: 0 | H12: 0 | I12: =MIN(B12+C12+D12+E12-F12+G12-H12,CALCULOS!H10) -> 42540.52 | J12: 0 | K12: 0 | L12: 0 | M12: 42540.52 | N12: =CALCULOS!G10 -> 42540.52 | O12: 0
A13: Jul | B13: 0 | C13: =CALCULOS!K11 -> 165.73 | D13: =CALCULOS!G11 -> 55037.98 | E13: 0 | F13: 0 | G13: 0 | H13: 0 | I13: =MIN(B13+C13+D13+E13-F13+G13-H13,CALCULOS!H11) -> 45180.43 | J13: 10023.28 | K13: 0 | L13: 0 | M13: 55037.98 | N13: =CALCULOS!G11 -> 55037.98 | O13: 0
A14: Ago | B14: 10023.28 | C14: =CALCULOS!K12 -> 1283.5 | D14: =CALCULOS!G12 -> 64331.97 | E14: 0 | F14: 0 | G14: 0 | H14: 0 | I14: =MIN(B14+C14+D14+E14-F14+G14-H14,CALCULOS!H12) -> 0 | J14: 75638.75 | K14: 0 | L14: 0 | M14: 64331.97 | N14: =CALCULOS!G12 -> 64331.97 | O14: 0
A15: Sep | B15: 75638.75 | C15: =CALCULOS!K13 -> 2007.54 | D15: =CALCULOS!G13 -> 26954.17 | E15: 0 | F15: 0 | G15: 0 | H15: 0 | I15: =MIN(B15+C15+D15+E15-F15+G15-H15,CALCULOS!H13) -> 0 | J15: 104600.46 | K15: 0 | L15: 0 | M15: 26954.17 | N15: =CALCULOS!G13 -> 26954.17 | O15: 0
A16: Oct | B16: 104600.46 | C16: =CALCULOS!K14 -> 262.75 | D16: =CALCULOS!G14 -> 11304.19 | E16: 0 | F16: 0 | G16: 0 | H16: 0 | I16: =MIN(B16+C16+D16+E16-F16+G16-H16,CALCULOS!H14) -> 101143.89 | J16: 15023.51 | K16: 0 | L16: 0 | M16: 11304.19 | N16: =CALCULOS!G14 -> 11304.19 | O16: 0
A17: Nov | B17: 15023.51 | C17: =CALCULOS!K15 -> 340.09 | D17: =CALCULOS!G15 -> 37780.53 | E17: 0 | F17: 0 | G17: 0 | H17: 0 | I17: =MIN(B17+C17+D17+E17-F17+G17-H17,CALCULOS!H15) -> 31529.16 | J17: 21614.97 | K17: 0 | L17: 0 | M17: 37780.53 | N17: =CALCULOS!G15 -> 37780.53 | O17: 0
A18: Dic | B18: 21614.97 | C18: =CALCULOS!K16 -> 475.59 | D18: =CALCULOS!G16 -> 19582.16 | E18: 0 | F18: 0 | G18: 0 | H18: 0 | I18: =MIN(B18+C18+D18+E18-F18+G18-H18,CALCULOS!H16) -> 13871 | J18: 27801.72 | K18: 0 | L18: 0 | M18: 19582.16 | N18: =CALCULOS!G16 -> 19582.16 | O18: 0
A19: TOTALES | B19: =SUM(B7:B18) -> 226900.97 | C19: 4535.2 | D19: 297084.09 | E19: 0 | F19: 0 | G19: 0 | H19: 0 | I19: 273817.57 | J19: 254702.69 | K19: 0 | L19: 0 | M19: 297084.09 | N19: 297084.09 | O19: 0
A21: NOTA: Debitos compensados (H) limitados al saldo disponible. Exceso de DF va a deuda tributaria.

Sheet _CONFIG (hidden)
A1: CONFIGURACION
A2: Usuario: | B2: beto
A3: Estado: | B3: activo
A4: FechaActivacion: | B4: 2026-02-24T00:29:07
A5: Equipo: | B5: LAPTOP-8UBVIF3B
A6: URLServidor: | B6: https://e.taxlawbolivia.com/licencias/api.php
